Cogmind - Beta 17.1 @@@ ROGUE MODE // 2026.09.18 @ 20:21:24 Player: Caluan Result: Self-destructed Performance ------------- Evolutions (8) 4000 Regions Visited (19) 3800 Robots Destroyed (219) 1095 Value Destroyed (12095) 12095 Prototype IDs (2) 40 Alien Tech Used (2) 400 Bonus (13755) 13755 TOTAL SCORE: 35185 Bonus ------- High Alert Combat Kills 1829 Follower Combat Kills 2926 Entered Garrisons 1000 Used RIF Installer 4000 Entered DSFs 500 Used Core Reset Matrix 3000 Scanned by Researcher 500 Cogmind --------- Core Integrity 198/1450 Matter 2/300 Energy 305/450 System Corruption 0% Temperature Cool (0) Movement Core (300) Ox5 Location -2/Quarantine Parts ------- > --- POWER (2) -------- (None) > --- PROPULSION (5) --- (None) > --- UTILITY (13) ----- Energy Well Advanced Targeting Computer Advanced Target Analyzer Core Analyzer Experimental Utility Shielding Improved Corruption Screen > --- WEAPON (3) ------- Gamma Bomb Array > --- INVENTORY (5) ---- Compact Matter Pod (0) Transmission Jammer Advanced Remote Datajack Peak State ------------ > --- POWER ------------ Micro Antimatter Reactor Light Quantum Reactor > --- PROPULSION ------- Medium Treads Armored Heavy Treads Biometal Heavy Treads > --- UTILITY ---------- Huge Storage Unit Advanced Targeting Computer Core Analyzer Experimental Utility Shielding Heavy Reactive Plating Relay Coupler [NC] Relay Coupler [Swarmer] Relay Coupler [Grunt] Relay Coupler [Sentry] Relay Coupler [Heavy] Relay Coupler [Heavy] Improved Corruption Screen > --- WEAPON ----------- Heavy Machine Gun KE Penetrator Railgun > --- INVENTORY -------- Micro Antimatter Reactor Armored Heavy Treads Experimental Biometal Medium Treads Energy Well Compact Matter Pod Transmission Jammer Relay Coupler [NC] Relay Coupler [Duelist] Relay Coupler [Sentry] Relay Coupler [Sentry] Relay Coupler [Specialist] Relay Coupler [Hunter] Relay Coupler [Proto] Relay Coupler [Proto] Field Laser Plasma Rifle Heavy Machine Gun Gamma Bomb Array Fusion Bomb Launcher Improved Datajack Advanced Remote Datajack Improved Plasma Cutter Enhanced Force Lance [Rating: 140] Favorites ----------- Power Reinforced Ion Engine Engine Reinforced Ion Engine Power Core Light Nuclear Core Reactor Light Particle Reactor Propulsion Light Treads Treads Light Treads Wheel Armored Wheel Utility Advanced Targeting Computer Device Improved Cooling System Storage Huge Storage Unit Processor Advanced Targeting Computer Hackware Relay Coupler [Hunter] Protection Improved Light Armor Plating Weapon Heavy Assault Rifle Energy Gun EM Pulse Gun Ballistic Gun Heavy Assault Rifle Launcher Missile Launcher Special Weapon Remote Datajack Slashing Weapon Chainsword Piercing Weapon Enhanced Force Lance Special Melee Weapon Improved Datajack Build | -11 -10 -10 -9 -9 -8 -8 -7 -6 -6 -5 -5 -5 -5 -4 -4 -3 -3 -2 -2 ------- Run | Yrd Mat Min Mat Min Mat Gar Fac Fac Gar Fac Gar Fac Gar Fac DSF Res Gar Res Qua Slots Evolved 16 | . . . 2 . 2 . 2 2 . 2 . . . 2 . 2 . 2 . Power 1 | . . . . . . . . . . . . . . . . . . 1 . Propulsion 3 | . . . . . 1 . 1 . . . . . . 1 . . . . . Utility 11 | . . . 1 . 1 . 1 2 . 2 . . . 1 . 2 . 1 . Weapon 1 | . . . 1 . . . . . . . . . . . . . . . . Parts Attached 179 | 6 9 2 13 2 2 20 3 9 22 2 14 3 17 1 3 7 22 14 8 Power 17 | 1 1 1 1 . . 3 . . 2 . . . 2 . . 2 1 2 1 Engine 6 | 1 . . 1 . . 3 . . 1 . . . . . . . . . . Core 3 | . 1 1 . . . . . . . . . . 1 . . . . . . Reactor 8 | . . . . . . . . . 1 . . . 1 . . 2 1 2 1 Propulsion 43 | 2 2 1 5 . 1 4 1 4 5 . 1 . 4 . 1 . 6 4 2 Treads 34 | 2 . . 3 . 1 3 . 3 5 . 1 . 4 . 1 . 5 4 2 Leg . | . . . . . . . . . . . . . . . . . . . . Wheel 9 | . 2 1 2 . . 1 1 1 . . . . . . . . 1 . . Hover . | . . . . . . . . . . . . . . . . . . . . Flight . | . . . . . . . . . . . . . . . . . . . . Utility 63 | 1 4 . 2 1 1 4 1 4 9 2 8 1 6 1 2 2 7 5 2 Device 5 | . . . . . 1 . 1 1 . . 1 . . . . . 1 . . Storage 7 | 1 2 . . 1 . . . . . . . . . . . 1 . 1 1 Processor 6 | . . . 1 . . . . 1 . . 1 . . 1 . . . 1 1 Hackware 35 | . . . . . . . . 2 8 2 6 1 6 . 2 1 6 1 . Protection 10 | . 2 . 1 . . 4 . . 1 . . . . . . . . 2 . Artifact . | . . . . . . . . . . . . . . . . . . . . Weapon 56 | 2 2 . 5 1 . 9 1 1 6 . 5 2 5 . . 3 8 3 3 Energy Gun 4 | 1 1 . . . . . . . . . . . . . . . 1 . 1 Energy Cannon . | . . . . . . . . . . . . . . . . . . . . Ballistic Gun 37 | 1 1 . 5 . . 7 . . 3 . 4 2 3 . . 3 5 2 1 Ballistic Cannon . | . . . . . . . . . . . . . . . . . . . . Launcher 5 | . . . . 1 . 1 . . 1 . 1 . . . . . 1 . . Special Weapon 4 | . . . . . . . . 1 . . . . 1 . . . 1 1 . Impact Weapon . | . . . . . . . . . . . . . . . . . . . . Slashing Weapon 3 | . . . . . . 1 . . 1 . . . . . . . . . 1 Piercing Weapon 1 | . . . . . . . . . . . . . 1 . . . . . . Special Melee Weapon 2 | . . . . . . . 1 . 1 . . . . . . . . . . Unidentified Prototypes 3 | . . . . . . . . . . . . . . . . . . 1 2 Parts Lost 64 | . 3 . . . . 15 1 3 6 . 1 . 3 . 1 3 12 3 13 Power 6 | . . . . . . 2 . . 1 . . . . . . . . 2 1 Propulsion 21 | . 2 . . . . 5 . 2 2 . . . 1 . . . 4 . 5 Utility 15 | . . . . . . 2 1 1 1 . 1 . 1 . 1 1 5 1 . Weapon 22 | . 1 . . . . 6 . . 2 . . . 1 . . 2 3 . 7 Highest Loss Streak 12 | . 1 . . . . 4 1 2 5 . 1 . 1 . 1 2 8 2 12 To Critical Strikes 5 | . . . . . . 3 . . . . . . 1 . . . . . 1 Average Backups 22 | 2 7 17 19 20 20 23 24 24 24 23 24 24 24 24 22 23 22 23 15 Power 1 | . 1 2 1 1 1 1 2 2 1 3 2 2 1 1 1 1 1 . . Propulsion 3 | 1 1 2 4 6 5 4 4 3 1 1 1 3 4 5 5 5 1 1 1 Utility 11 | . . 4 6 6 7 13 14 13 15 11 11 13 11 13 11 10 11 11 7 Weapon 4 | . 2 7 6 6 6 3 3 4 4 7 6 5 4 4 3 4 5 6 4 Tool/Special . | . . . . . . . . . . . . . . . . . . . . Unused Backups 31 | . . . 4 2 . 4 1 1 5 . . . 2 . . 1 . 1 10 Power 1 | . . . . . . . . 1 . . . . . . . . . . . Propulsion 5 | . . . 2 . . . . . 1 . . . . . . 1 . 1 . Utility 20 | . . . 1 . . 4 . . 4 . . . 2 . . . . . 9 Weapon 4 | . . . 1 2 . . 1 . . . . . . . . . . . . Tool/Special 1 | . . . . . . . . . . . . . . . . . . . 1 Average Slot Usage (%) 91 | . 98 100 99 100 94 98 88 86 93 77 86 94 88 81 84 74 79 86 51 Engine 4 | . 7 . 4 11 9 8 7 6 3 . . . . . . . . . . Core 1 | . 6 14 6 . . . . . . . . . 1 . . . . . . Reactor 2 | . . . . . . . . . 2 5 5 5 3 5 5 4 3 7 3 Treads 15 | . 17 . 9 11 18 17 15 13 18 17 17 17 14 10 13 13 16 13 9 Wheel 6 | . 10 28 12 11 9 8 15 12 4 . . . . . . . 1 2 . Device 1 | . . . . . 4 . 1 12 5 . . 2 . 5 5 4 3 . . Storage 7 | . 14 14 11 11 9 9 7 6 6 5 5 5 5 5 5 4 4 4 3 Processor 8 | . . . 10 11 9 9 7 10 13 11 6 5 5 7 10 9 9 11 13 Hackware 12 | . . . . . . . . 3 13 12 27 38 37 31 28 21 25 26 7 Protection 8 | . 13 14 11 11 9 16 11 . 3 5 3 . . . . . . 6 4 Ballistic Gun 17 | . 18 28 33 33 27 21 19 19 15 11 13 11 11 10 12 12 10 9 6 Slashing Weapon 1 | . . . . . . 5 . . . . 1 . . . . . . . . Peak Build Rating 140 | 6 12 13 21 21 27 31 33 48 82 80 97 97 105 109 119 121 119 140 115 Average Rating 56 | 4 9 12 19 20 25 29 30 40 59 76 86 95 93 107 112 113 100 121 88 On Entrance 60 | . 6 12 13 20 21 27 29 33 47 74 80 97 95 105 109 111 119 101 115 Avg Prop Armor Cover (%) 12 | . 9 . 7 7 12 11 11 13 10 . . . . . . . 28 14 44 Naked Turns . | . . . . . . . . . . . . . . . . . . . . Heaviest Build 155 | 14 54 54 59 97 101 108 105 103 114 112 123 123 128 128 134 137 126 155 107 Greatest Support 172 | 40 40 20 23 12 12 43 24 24 125 125 128 128 145 145 172 172 172 163 163 Greatest Overweight (x) 11 | . 5 2 5 8 8 8 4 8 11 . . . . . . . 10 11 . Average Overweight (x) 3 | . 1 2 4 5 8 7 4 4 3 . . . . . . . 4 4 . Largest Inventory Capacity 25 | 8 20 20 20 25 25 25 25 25 25 25 25 25 25 25 25 25 25 25 25 Average Capacity 24 | 7 19 20 20 21 25 25 25 25 25 25 25 25 25 25 25 25 25 25 21 Most Carried 25 | 4 17 18 20 21 20 25 25 25 25 25 25 25 25 25 25 25 25 25 25 Average Carried 22 | 2 7 17 19 20 20 23 24 24 24 23 24 24 24 25 23 24 22 23 16 Final Capacity 25 | 8 20 20 20 25 25 25 25 25 25 25 25 25 25 25 25 25 25 25 5 Final Carried 25 | 4 16 18 20 21 20 25 25 25 23 24 25 25 25 25 25 25 23 24 3 Class Distribution -------------------- 14% | Botlord-Tank 13% | Mutant 13% | Scavenger-Mutant 9% | Gunner 9% | Bothacker-Gunner 9% | Bothacker-Tank 8% | Botlord-Mutant 8% | Botlord-Gunner 7% | Scavenger-Tank 3% | Bothacker-Mutant Dominant Class ---------------- Mutant | -10/Materials Mutant | -10/Mines Gunner | -9/Materials Gunner | -9/Mines Tank | -8/Materials Scavenger-Mutant | -8/Garrison Bothacker-Gunner | -7/Factory Bothacker-Gunner | -6/Factory Bothacker-Gunner | -6/Garrison Bothacker-Tank | -5/Factory Bothacker-Tank | -5/Garrison Botlord-Tank | -5/Factory Botlord-Tank | -5/Garrison Botlord-Mutant | -4/Factory Botlord-Tank | -4/DSF Botlord-Tank | -3/Research Botlord-Gunner | -3/Garrison Botlord-Tank | -2/Research Mutant | -2/Quarantine Resources | -11 -10 -10 -9 -9 -8 -8 -7 -6 -6 -5 -5 -5 -5 -4 -4 -3 -3 -2 -2 ----------- Run | Yrd Mat Min Mat Min Mat Gar Fac Fac Gar Fac Gar Fac Gar Fac DSF Res Gar Res Qua Matter Collected 7739 | 171 405 158 472 88 . 991 210 396 537 73 659 34 844 . 164 567 1028 762 180 Remotely . | . . . . . . . . . . . . . . . . . . . . Salvage Created 9731 | . 680 169 938 90 . 1343 210 373 446 27 526 . 745 . 261 1405 1366 871 281 Parts 560 | . 47 15 57 15 . 99 10 21 33 2 20 . 25 . 12 75 59 55 15 Haulers Intercepted 4 | . . . 3 . . . 1 . . . . . . . . . . . . Recyclers Shooed 6 | . 1 . . . . . . . . . . . . . . 3 . 2 . Parts Field Recycled . | . . . . . . . . . . . . . . . . . . . . Retrieved Matter . | . . . . . . . . . . . . . . . . . . . . Parts Self-Destructed . | . . . . . . . . . . . . . . . . . . . . Prevented . | . . . . . . . . . . . . . . . . . . . . Parts Restored . | . . . . . . . . . . . . . . . . . . . . Kills | -11 -10 -10 -9 -9 -8 -8 -7 -6 -6 -5 -5 -5 -5 -4 -4 -3 -3 -2 -2 ------- Run | Yrd Mat Min Mat Min Mat Gar Fac Fac Gar Fac Gar Fac Gar Fac DSF Res Gar Res Qua Combat Hostiles Destroyed 199 | . 16 9 18 8 . 38 3 6 17 1 10 . 12 . 6 15 25 10 5 Melee 1 | . . . . . . . . . . . . . . . . . . . 1 Guns 174 | . 14 9 18 4 . 38 3 6 8 1 8 . 12 . 6 15 19 10 3 AOE 24 | . 2 . . 4 . . . . 9 . 2 . . . . . 6 . 1 Classes Destroyed 17 | . 5 1 2 . . 3 . 4 1 . . . . . . 1 . . . Worker 3 | . 1 . . 1 . . . . . . . . . . . 1 . . . Builder 5 | . . . . . . . . 1 . . . . . . . 1 . 2 1 Hauler 4 | . . . 3 . . . 1 . . . . . . . . . . . . Recycler 4 | . . . . . . . . . . . . . . . . 3 . 1 . Operator 1 | . 1 . . . . . . . . . . . . . . . . . . Watcher 4 | . 1 . 1 . . . . . . . . . 1 . . 1 . . . Swarmer 67 | . 3 5 3 8 . 16 . 1 12 1 3 . . . 4 7 4 . . Cutter 3 | . . . . . . 3 . . . . . . . . . . . . . Saboteur 4 | . . . . . . . . . 3 . . . . . . . 1 . . Grunt 76 | . 13 2 8 . . 7 3 2 2 . 5 . 7 . 2 1 17 5 2 Brawler 4 | . . . . . . 2 . . . . 1 . 1 . . . . . . Duelist 1 | . . . . . . . . 1 . . . . . . . . . . . Sentry 16 | . . . 7 . . 8 . . . . . . . . . 1 . . . Specialist 2 | . . . . . . 2 . . . . . . . . . . . . . Hunter 9 | . . . . . . . . 2 . . 1 . . . . 4 . . 2 Programmer 16 | . . . . . . . . 1 . . . . 4 . . 2 3 5 1 Assembled 2 | . . 2 . . . . . . . . . . . . . . . . . Best Kill Streak 11 | . 4 5 7 5 . 11 2 4 4 1 4 . 5 . 6 10 7 5 4 Combat Bots Only 11 | . 4 5 5 4 . 11 2 3 4 1 4 . 5 . 6 8 7 3 3 Max Kills in Single Turn 4 | . 2 2 2 3 . 2 2 2 3 1 2 . 2 . 3 4 3 2 1 Gunslinging 1 | . . 1 1 . . 1 . . . . . . . . 1 1 . . . Exploded 3 | . 1 . . 2 . . . . 3 . 2 . . . . . 3 . 1 Melee 1 | . . . . . . . . . . . . . . . . . . . 1 Uniques/NPCs Destroyed . | . . . . . . . . . . . . . . . . . . . . Combat | -11 -10 -10 -9 -9 -8 -8 -7 -6 -6 -5 -5 -5 -5 -4 -4 -3 -3 -2 -2 -------- Run | Yrd Mat Min Mat Min Mat Gar Fac Fac Gar Fac Gar Fac Gar Fac DSF Res Gar Res Qua Hostile Shots Fired 1386 | . 102 29 46 16 . 210 24 72 90 2 37 3 62 . 46 92 174 82 299 Missed 318 | . 30 13 13 1 . 37 8 22 26 . 8 1 16 . 13 16 42 15 57 Hits 1068 | . 72 16 33 15 . 173 16 50 64 2 29 2 46 . 33 76 132 67 242 Melee 19 | . . 1 . . . 14 . . . . 1 . 1 . . . 2 . . Projectile 1049 | . 72 15 33 15 . 159 16 50 64 2 28 2 45 . 33 76 130 67 242 AOE 3 | . . . . . . 1 . 1 . . . . 1 . . . . . . Critical Strikes 49 | . . . . . . 11 1 2 3 . . . 6 . 1 . 11 4 10 Part Disruptions 2 | . . . . . . . . . 1 . . . . . . . . . 1 Damage Taken 19670 | . 923 194 417 110 . 2357 264 874 1039 51 635 28 1181 . 678 1423 2690 1965 4841 Core 2465 | . 144 56 42 21 . 189 108 105 107 . 47 . 132 . 44 97 121 185 1067 Absorbed by Shields 324 | . . . . . . 60 . . . . . 10 . . 29 155 70 . . Reduced by Siege Mode 571 | . . . . . . . . . . . . . . . 44 52 226 84 165 Redirected to Shielding 126 | . . . . . . . . . . . . . . . . . . . 126 Ignored by Resistances 483 | . . . . . . . . . . . . . . . . . . 483 . Regen/Repaired (Parts) 689 | . 87 . . . . . . . . . . . . . . 514 . . 88 Core Remaining (%) 76 | 100 . 20 . 84 . 65 84 . 75 . . . 82 . 96 . 83 . . Volleys Fired 589 | . 67 18 38 6 . 86 11 28 39 7 42 . 72 . 9 26 65 49 26 Largest 3 | . 2 2 3 3 . 3 3 3 3 2 3 . 3 . 3 3 3 3 3 Hottest 168 | . 60 40 69 69 . 69 69 69 84 56 84 . 98 . 98 120 135 98 168 Shots Fired 1317 | . 131 36 114 14 . 217 32 74 62 8 85 . 126 . 27 74 161 107 49 Gun 1214 | . 131 36 114 12 . 211 32 69 43 2 68 . 111 . 27 74 150 88 46 Cannon . | . . . . . . . . . . . . . . . . . . . . Launcher 24 | . . . . 2 . 6 . . 6 . 1 . . . . . 6 . 3 Special 79 | . . . . . . . . 5 13 6 16 . 15 . . . 5 19 . Kinetic 1139 | . 67 36 114 12 . 211 32 69 43 2 68 . 111 . 27 74 145 88 40 Thermal 30 | . 19 . . . . . . . . . . . . . . . 5 . 6 Explosive 17 | . . . . 2 . 6 . . 1 . . . . . . . 6 . 2 Electromagnetic 52 | . 45 . . . . . . . 5 . 1 . . . . . . . 1 Robot Hit Streak 54 | . 12 8 35 42 . 54 14 26 30 33 11 . 9 . 18 17 39 18 14 Robot Miss Streak 9 | . 4 4 2 . . 2 2 2 9 1 3 . 2 . 2 3 3 3 1 Penetration Max 3 | . . . . . . . . . 1 . 1 . 2 . 1 3 1 1 . Secondary Targets 38 | . 1 2 2 . . 11 2 1 1 . . . 1 . 3 5 5 2 2 Max Gunslinging Chain 1 | . 1 1 1 . . 1 1 1 1 . . . 1 . 1 1 1 1 1 Shots Hit Robots 969 | . 77 20 84 7 . 170 23 61 44 6 66 . 81 . 25 49 121 89 46 Core Hits 428 | . 31 12 33 9 . 66 9 25 24 1 25 . 31 . 13 41 63 30 15 Critical Kills 30 | . . . 1 . . . . . . . . . 3 . 3 18 5 . . Critical Parts Destroyed 38 | . . . . . . 1 . . . . 2 . 3 . 1 15 13 3 . Critical Strikes 69 | . . . 1 . . 1 . . . . 2 . 6 . 4 33 18 3 1 Destroy 68 | . . . 1 . . 1 . . . . 2 . 6 . 4 33 18 3 . Sever 1 | . . . . . . . . . . . . . . . . . . . 1 Melee Attacks 114 | . . . . . . 55 1 . 10 . 16 . 6 . 3 3 7 . 13 Thermal 4 | . . . . . . . . . 4 . . . . . . . . . . Impact . | . . . . . . . . . . . . . . . . . . . . Slashing 79 | . . . . . . 55 . . 3 . 9 . . . . . . . 12 Piercing 13 | . . . . . . . . . . . . . 2 . . 3 7 . 1 Sneak Attacks 8 | . . . . . . . 1 . . . 7 . . . . . . . . Combat Hostiles . | . . . . . . . . . . . . . . . . . . . . Follow-up Attacks . | . . . . . . . . . . . . . . . . . . . . Damage Inflicted 19438 | . 1215 255 1220 302 . 2621 398 830 842 18 1145 . 1414 . 454 836 3753 2231 1904 Guns 15914 | . 1041 255 1220 103 . 2621 398 830 470 18 1009 . 1414 . 454 836 2343 2218 684 Cannons . | . . . . . . . . . . . . . . . . . . . . Explosions 2926 | . 174 . . 199 . . . . 372 . 136 . . . . . 1410 . 635 Melee 571 | . . . . . . . . . . . . . . . . . . . 571 Ramming 27 | . . . . . . . . . . . . . . . . . . 13 14 Kinetic 15246 | . 555 255 1220 103 . 2621 398 830 470 18 1009 . 1414 . 454 836 2255 2218 590 Thermal 510 | . 286 . . . . . . . 42 . . . . . . . 88 . 94 Explosive 2282 | . . . . 199 . . . . 133 . . . . . . . 1410 . 540 Electromagnetic 802 | . 374 . . . . . . . 197 . 136 . . . . . . . 95 Impact . | . . . . . . . . . . . . . . . . . . . . Slashing 571 | . . . . . . . . . . . . . . . . . . . 571 Piercing . | . . . . . . . . . . . . . . . . . . . . Highest Corruption 6 | . . . . . . 5 . . . . 3 3 6 . . . 3 . . Average Corruption 4 | . . . . . . 4 . . . . 3 3 5 . . . 2 . . Corruption Purged . | . . . . . . . . . . . . . . . . . . . . Corruption Blocked 14 | . . . . . . . . 1 . . . . . . . . . 7 6 Effects 188 | . . . . . . 96 . . . . 17 2 45 . . . 28 . . Message Errors 51 | . . . . . . 30 . . . . 3 1 10 . . . 7 . . Matter Fused 44 | . . . . . . 20 . . . . 3 . 13 . . . 8 . . Heat Flow Errors 26 | . . . . . . 14 . . . . 1 . 6 . . . 5 . . Energy Discharges 27 | . . . . . . 17 . . . . 1 . 7 . . . 2 . . Parts Rejected 2 | . . . . . . . . . . . . . 2 . . . . . . Parts Fused 1 | . . . . . . 1 . . . . . . . . . . . . . Data Loss (minor) 16 | . . . . . . 7 . . . . 2 1 3 . . . 3 . . Data Loss (major) 7 | . . . . . . 1 . . . . 5 . . . . . 1 . . Misfires 5 | . . . . . . 2 . . . . . . 1 . . . 2 . . Alerts 6 | . . . . . . 4 . . . . 1 . 1 . . . . . . Weapon Failures 3 | . . . . . . . . . . . 1 . 2 . . . . . . Overload Shots . | . . . . . . . . . . . . . . . . . . . . Overflow Damage 118 | . . . . . . . . . . . . . . . . . 41 . 77 Projectiles . | . . . . . . . . . . . . . . . . . . . . Explosions 79 | . . . . . . . . . . . . . . . . . 41 . 38 Melee 39 | . . . . . . . . . . . . . . . . . . . 39 Knockbacks 1 | . . . . . . . . . . . . . . . . . . 1 . Impact 1 | . . . . . . . . . . . . . . . . . . 1 . Kinetic . | . . . . . . . . . . . . . . . . . . . . Secondary . | . . . . . . . . . . . . . . . . . . . . Self-Inflicted Damage 160 | . . . . . . . . . . . . . . . . . 81 . 79 Shots 5 | . . . . . . . . . . . . . . . . . 2 . 3 Rammed 5 | . 1 . . . . . . . . . . . . . . . . 2 2 Targets Rammed 5 | . 1 . . . . . . . . . . . . . . . . 2 2 Kicked . | . . . . . . . . . . . . . . . . . . . . Crushed . | . . . . . . . . . . . . . . . . . . . . Highest Temperature 272 | . 189 15 98 45 . 272 49 7 . . 91 . 255 . 106 36 247 222 . Average Temperature 57 | . 59 10 26 26 . 75 23 5 . . 15 . 63 . 45 13 38 90 . Received Heat Transfer 3451 | . 444 24 141 . . 648 72 159 315 9 126 . 294 . 111 18 793 81 216 Effects 3 | . . . . . . 2 . . . . . . . . . . 1 . . Energy Bleed 2 | . . . . . . 2 . . . . . . . . . . . . . Interference 1 | . . . . . . . . . . . . . . . . . 1 . . Siege Activations 14 | . . . . . . . . . . . . . . . 1 2 5 5 1 Total Turns 364 | . . . . . . . . . . . . . . . 26 43 108 121 66 Longest Duration 66 | . . . . . . . . . . . . . . . 26 38 43 40 66 Martial Activations . | . . . . . . . . . . . . . . . . . . . . Shielding Activations . | . . . . . . . . . . . . . . . . . . . . Robots Disrupted . | . . . . . . . . . . . . . . . . . . . . Combat Hostiles . | . . . . . . . . . . . . . . . . . . . . Robots Corrupted . | . . . . . . . . . . . . . . . . . . . . Combat Hostiles . | . . . . . . . . . . . . . . . . . . . . Parts Fried 2 | . 2 . . . . . . . . . . . . . . . . . . Impact Corruptions . | . . . . . . . . . . . . . . . . . . . . Robots Melted . | . . . . . . . . . . . . . . . . . . . . Combat Hostiles . | . . . . . . . . . . . . . . . . . . . . Parts Melted 4 | . . . . . . . . 1 . . 3 . . . . . . . . Heat Transferred 961 | . 500 . . . . . . . 50 . . . . . . . 200 . 211 Parts Sabotaged 7 | . . . . . . . . . . . . . . . . . 7 . . Parts Stolen . | . . . . . . . . . . . . . . . . . . . . Parts Stripped . | . . . . . . . . . . . . . . . . . . . . Power Chain Reactions 4 | . 3 . . . . . . . 1 . . . . . . . . . . Alert | -11 -10 -10 -9 -9 -8 -8 -7 -6 -6 -5 -5 -5 -5 -4 -4 -3 -3 -2 -2 ------- Run | Yrd Mat Min Mat Min Mat Gar Fac Fac Gar Fac Gar Fac Gar Fac DSF Res Gar Res Qua Maximum Alert Level 5 | . . . 1 . . 5 5 3 5 4 5 3 4 3 2 1 3 2 . Low Security (%) 22 | 100 100 100 93 100 100 2 . . . . . . . . . 7 . 46 100 Level 1 6 | . . . 6 . . 3 . . . . . . . . 2 92 13 38 . Level 2 9 | . . . . . . 13 . . 5 . . . 1 58 98 . 27 14 . Level 3 24 | . . . . . . 14 . 100 41 23 9 100 76 41 . . 58 . . Level 4 14 | . . . . . . 9 . . 48 76 54 . 21 . . . . . . Level 5 21 | . . . . . . 56 100 . 5 . 35 . . . . . . . . High Security . | . . . . . . . . . . . . . . . . . . . . Max Security . | . . . . . . . . . . . . . . . . . . . . Sterilizations 1 | . . . . . . . . . . . . . . . 1 . . . . Peak Influence 4172 | . 141 110 219 144 14 4172 2211 1038 1650 1170 1888 1022 1366 716 617 352 854 480 143 Initial 2190 | . . 1 36 81 14 2 2190 1038 562 865 756 991 694 716 469 335 247 480 26 Average 1068 | . 50 20 90 82 3 1947 2163 897 1153 1105 1459 998 1026 694 547 281 645 221 34 Influence Increases 11973 | . 458 170 554 203 4 4320 131 238 1208 445 1402 41 882 14 258 347 767 215 316 Destroy 0b10 Robot/C 4615 | . 320 140 360 160 . 820 100 160 460 220 555 15 315 . 150 225 375 120 120 Destroy 0b10 Robot/NC 107 | . 15 . 20 5 . . 5 5 . 5 5 . 4 . . 24 . 9 10 Destroy Leader 618 | . 92 30 128 20 . 20 12 50 30 22 40 8 16 . 16 50 40 24 20 Allied During Kill 1070 | . . . . . . 12 14 7 51 198 461 18 165 . 92 9 5 31 7 Successful Hack 115 | . 9 . 11 . 4 14 . . 7 . 28 . 6 . . 9 12 . 15 Disable Machine 69 | . . . 30 . . . . . . . . . . . . . 24 . 15 Anti-Garrison Action 4433 | . . . . . . 3250 . . 500 . 238 . 264 . . . 181 . . Destroy Structure 631 | . 7 . 5 18 . 144 . 1 40 . 45 . 100 14 . 18 118 22 99 Partial Spotted 15 | . . . . . . . . 15 . . . . . . . . . . . Lose Combat Pursuer 300 | . 15 . . . . 60 . . 120 . 30 . 12 . . 12 12 9 30 Influence Decreases 11913 | . 453 81 440 373 38 152 2182 1555 362 1015 594 937 508 710 331 614 243 1022 303 Entered New Map 7417 | . . 4 58 127 24 2 1982 1083 242 785 324 897 298 650 201 262 83 374 21 Time Decay 2648 | . 423 77 382 246 14 . 170 262 . 130 . 40 . 60 . 222 . 478 144 Lost Part 628 | . 30 . . . . 150 10 30 60 . 10 . 30 . 10 30 120 30 118 Lost Ally 1070 | . . . . . . . 20 30 60 100 260 . 180 . 120 100 40 140 20 Purge Threat 150 | . . . . . . . . 150 . . . . . . . . . . . Squads Dispatched 35 | . 4 . 6 1 . . 1 5 . . . 1 . 1 2 5 . 6 3 Investigation 6 | . 1 . 2 1 . . . . . . . . . 1 . 1 . . . Extermination 6 | . . . . . . . . 2 . . . . . . . 1 . 3 . Reinforcement 19 | . 3 . 4 . . . 1 1 . . . 1 . . 2 2 . 2 3 Assault . | . . . . . . . . . . . . . . . . . . . . Garrison 4 | . . . . . . . . 2 . . . . . . . 1 . 1 . Intercept . | . . . . . . . . . . . . . . . . . . . . Searches Triggered . | . . . . . . . . . . . . . . . . . . . . Construction Impeded 2 | . . . . . . . . . . . . . . . . 1 . . 1 Haulers Reinforced 3 | . . . . . . . . . . . . . . . . 1 . 2 . Active Scanning Responses . | . . . . . . . . . . . . . . . . . . . . Cargo Convoy Interrupts . | . . . . . . . . . . . . . . . . . . . . Alert ID Control Effect 17 | . . . . . . . . . . . . . . . . 3 . 14 . Stealth | -11 -10 -10 -9 -9 -8 -8 -7 -6 -6 -5 -5 -5 -5 -4 -4 -3 -3 -2 -2 --------- Run | Yrd Mat Min Mat Min Mat Gar Fac Fac Gar Fac Gar Fac Gar Fac DSF Res Gar Res Qua Distress Signals 20 | . 7 1 2 . . . 1 . . 2 . . 1 . . 5 . 1 . Communications Jammed 87 | . . . . . . . . . . . . . . . . . . 87 . Distress Signals 85 | . . . . . . . . . . . . . . . . . . 85 . Times Spotted 383 | . 26 9 28 7 . 44 8 10 40 14 37 1 38 . 13 20 33 38 17 Peak Tracking Total 9 | . 6 4 7 4 . 8 5 3 4 6 5 1 6 . 5 9 6 4 7 Tactical Retreats 21 | . 3 . . . . 3 . . 7 . 2 . 1 . . 1 1 1 2 Traps | -11 -10 -10 -9 -9 -8 -8 -7 -6 -6 -5 -5 -5 -5 -4 -4 -3 -3 -2 -2 ------- Run | Yrd Mat Min Mat Min Mat Gar Fac Fac Gar Fac Gar Fac Gar Fac DSF Res Gar Res Qua Traps Triggered 27 | . 3 . 2 . . 10 . . 5 . . . 1 . . . 4 . 2 Indirectly . | . . . . . . . . . . . . . . . . . . . . Trap Hack Attempts . | . . . . . . . . . . . . . . . . . . . . Triggered . | . . . . . . . . . . . . . . . . . . . . Disarmed . | . . . . . . . . . . . . . . . . . . . . Reprogrammed . | . . . . . . . . . . . . . . . . . . . . Reused . | . . . . . . . . . . . . . . . . . . . . Traps Extracted . | . . . . . . . . . . . . . . . . . . . . Installed . | . . . . . . . . . . . . . . . . . . . . Triggered . | . . . . . . . . . . . . . . . . . . . . Machines | -11 -10 -10 -9 -9 -8 -8 -7 -6 -6 -5 -5 -5 -5 -4 -4 -3 -3 -2 -2 ---------- Run | Yrd Mat Min Mat Min Mat Gar Fac Fac Gar Fac Gar Fac Gar Fac DSF Res Gar Res Qua Machines Disabled 23 | . . . 2 . . 4 . . 4 . 3 . 4 . . . 5 . 1 Max in Single Turn 1 | . . . 1 . . 1 . . 1 . 1 . 1 . . . 1 . 1 Garrison Relay 19 | . . . . . . 5 . . 4 . 4 . 3 . . . 3 . . Machines Repaired . | . . . . . . . . . . . . . . . . . . . . Machines Dismantled . | . . . . . . . . . . . . . . . . . . . . Machines Sabotaged . | . . . . . . . . . . . . . . . . . . . . Overloaded Fab Kills . | . . . . . . . . . . . . . . . . . . . . Hacking | -11 -10 -10 -9 -9 -8 -8 -7 -6 -6 -5 -5 -5 -5 -4 -4 -3 -3 -2 -2 --------- Run | Yrd Mat Min Mat Min Mat Gar Fac Fac Gar Fac Gar Fac Gar Fac DSF Res Gar Res Qua Machines Accessed 34 | . 3 . 5 1 1 3 1 2 2 1 2 2 2 2 . 3 1 1 2 Terminals 18 | . 1 . 3 . . 3 . 1 2 . 2 . 2 2 . . 1 1 . Fabricators 3 | . . . . . . . 1 . . . . 1 . . . 1 . . . Repair Stations 3 | . 1 . . . . . . . . . . . . . . 1 . . 1 Recycling Units 2 | . 1 . 1 . . . . . . . . . . . . . . . . Scanalyzers 2 | . . . 1 . . . . . . . . . . . . . . . 1 Garrison Access 5 | . . . . . 1 . . 1 . 1 . 1 . . . 1 . . . Total Hacks 57 | . 4 . 10 1 1 5 1 3 6 1 3 2 2 7 . 6 1 1 3 Successful 27 | . 3 . 5 1 1 1 . 2 1 1 2 1 2 2 . 3 1 . 1 Failed 30 | . 1 . 5 . . 4 1 1 5 . 1 1 . 5 . 3 . 1 2 Catastrophic 12 | . 1 . . . . 3 1 . 1 . . . . 1 . 2 . 1 2 Database Lockouts . | . . . . . . . . . . . . . . . . . . . . Manual 15 | . 1 . 7 . . . 1 . . . . 1 . 4 . 1 . . . Terminals 32 | . 1 . 5 . . 5 . 1 6 . 3 . 2 7 . . 1 1 . Fabricators 3 | . . . . . . . 1 . . . . 1 . . . 1 . . . Repair Stations 8 | . 2 . . . . . . . . . . . . . . 4 . . 2 Recycling Units 4 | . 1 . 3 . . . . . . . . . . . . . . . . Scanalyzers 3 | . . . 2 . . . . . . . . . . . . . . . 1 Garrison Access 6 | . . . . . 1 . . 2 . 1 . 1 . . . 1 . . . Terminal Hacks 10 | . . . 1 1 . 1 . . 1 . 2 . 2 1 . . 1 . . Open Door 3 | . . . . 1 . . . . 1 . . . 1 . . . . . . Open DSF 1 | . . . . . . . . . . . . . . 1 . . . . . Branch Access Points 1 | . . . 1 . . . . . . . . . . . . . . . . Emergency Access Points 1 | . . . . . . . . . . . 1 . . . . . . . . Garrison Registry 2 | . . . . . . . . . . . 1 . 1 . . . . . . Patrol Navigation 1 | . . . . . . 1 . . . . . . . . . . . . . Security Stations 1 | . . . . . . . . . . . . . . . . . 1 . . Fabricator Hacks . | . . . . . . . . . . . . . . . . . . . . Repair Station Hacks 5 | . 2 . . . . . . . . . . . . . . 2 . . 1 Scan Component 3 | . 1 . . . . . . . . . . . . . . 1 . . 1 Repair 2 | . 1 . . . . . . . . . . . . . . 1 . . . Recycling Unit Hacks . | . . . . . . . . . . . . . . . . . . . . Scanalyzer 1 | . . . 1 . . . . . . . . . . . . . . . . Retrieve Study 1 | . . . 1 . . . . . . . . . . . . . . . . Garrison Access Hacks 6 | . . . . . 1 . . 2 . 1 . 1 . . . 1 . . . Unlock Access 5 | . . . . . 1 . . 1 . 1 . 1 . . . 1 . . . Coupler Status 1 | . . . . . . . . 1 . . . . . . . . . . . Unauthorized Hacks 5 | . 1 . 3 . . . . . . . . . . 1 . . . . . Terminals 4 | . . . 3 . . . . . . . . . . 1 . . . . . Botnet 4 | . . . 3 . . . . . . . . . . 1 . . . . . Fabricators . | . . . . . . . . . . . . . . . . . . . . Repair Stations . | . . . . . . . . . . . . . . . . . . . . Recycling Units 1 | . 1 . . . . . . . . . . . . . . . . . . Mask 1 | . 1 . . . . . . . . . . . . . . . . . . Scanalyzers . | . . . . . . . . . . . . . . . . . . . . Garrison Access . | . . . . . . . . . . . . . . . . . . . . Data Cores Recovered . | . . . . . . . . . . . . . . . . . . . . Used . | . . . . . . . . . . . . . . . . . . . . Hacking Detections 27 | . 1 . 5 . . 3 1 2 2 . 1 2 1 2 . 3 1 1 2 Full Trace Events 3 | . . . . . . 1 . . . . . . . 1 . 1 . . . Feedback Events . | . . . . . . . . . . . . . . . . . . . . Feedback Blocked . | . . . . . . . . . . . . . . . . . . . . Robot Schematics Acquired . | . . . . . . . . . . . . . . . . . . . . Robots Built . | . . . . . . . . . . . . . . . . . . . . Authchips . | . . . . . . . . . . . . . . . . . . . . Time . | . . . . . . . . . . . . . . . . . . . . Total Robot Build Rating . | . . . . . . . . . . . . . . . . . . . . Part Schematics Acquired . | . . . . . . . . . . . . . . . . . . . . Parts Built . | . . . . . . . . . . . . . . . . . . . . Authchips . | . . . . . . . . . . . . . . . . . . . . Time . | . . . . . . . . . . . . . . . . . . . . Total Part Build Rating . | . . . . . . . . . . . . . . . . . . . . Part Studies Acquired 1 | . . . 1 . . . . . . . . . . . . . . . . Parts Repaired 2 | . 1 . . . . . . . . . . . . . . 1 . . . Time 60 | . 26 . . . . . . . . . . . . . . 34 . . . Parts Recycled . | . . . . . . . . . . . . . . . . . . . . Recycled Matter . | . . . . . . . . . . . . . . . . . . . . Retrieved Matter . | . . . . . . . . . . . . . . . . . . . . Retrieved Components . | . . . . . . . . . . . . . . . . . . . . Parts Scanalyzed . | . . . . . . . . . . . . . . . . . . . . Part Schematics Acquired . | . . . . . . . . . . . . . . . . . . . . Parts Damaged . | . . . . . . . . . . . . . . . . . . . . Bothacking | -11 -10 -10 -9 -9 -8 -8 -7 -6 -6 -5 -5 -5 -5 -4 -4 -3 -3 -2 -2 ------------ Run | Yrd Mat Min Mat Min Mat Gar Fac Fac Gar Fac Gar Fac Gar Fac DSF Res Gar Res Qua Used RIF Installer 8 | . . . . . . 2 . . 1 . 2 . 1 . . . 2 . . Coupler Efficiency 1 | . . . . . . . . . . . 1 . . . . . . . . Threat Obfuscator 2 | . . . . . . . . . . . 1 . . . . . 1 . . Signal Jammer 1 | . . . . . . 1 . . . . . . . . . . . . . Watcher Feeds 1 | . . . . . . . . . . . . . . . . . 1 . . Patrol Navigation 1 | . . . . . . . . . 1 . . . . . . . . . . Alert ID Control 1 | . . . . . . . . . . . . . 1 . . . . . . Robots Hacked 69 | . . . . . . . 1 2 15 4 10 . 16 . 3 . 5 13 . Non-combat 5 | . . . . . . . 1 1 . . . . . . . . . 3 . Combat 64 | . . . . . . . . 1 15 4 10 . 16 . 3 . 5 10 . Robot Hacks Applied 70 | . . . . . . . 1 3 15 4 10 . 16 . 3 . 5 13 . start_evac 1 | . . . . . . . . . . . . . . . . . . 1 . find_chute 1 | . . . . . . . 1 . . . . . . . . . . . . purge_threat 1 | . . . . . . . . 1 . . . . . . . . . . . link_fov 2 | . . . . . . . . . . . . . . . . . . 2 . focus_fire 2 | . . . . . . . . . 1 . . . . . . . . 1 . scatter_targeting 1 | . . . . . . . . . 1 . . . . . . . . . . reboot_system 1 | . . . . . . . . . . . . . 1 . . . . . . go_dormant 1 | . . . . . . . . . . . . . . . 1 . . . . overwrite_iff 4 | . . . . . . . . 1 . 1 . . . . 1 . . 1 . streamctrl_high 2 | . . . . . . . . . . . 2 . . . . . . . . formatsys_low 1 | . . . . . . . . 1 . . . . . . . . . . . formatsys_high 53 | . . . . . . . . . 13 3 8 . 15 . 1 . 5 8 . Relay Couplers Released 76 | . . . . . . 19 . . 16 . 16 . 10 . . . 11 4 . Machine Destruction 72 | . . . . . . 19 . . 16 . 16 . 10 . . . 11 . . Programmers 4 | . . . . . . . . . . . . . . . . . . 4 . Attached 35 | . . . . . . . . 2 8 2 6 1 6 . 2 1 6 1 . Fabnet Peak Effective % . | . . . . . . . . . . . . . . . . . . . . Robots Rewired 9 | . . . . . . 3 . . . . 6 . . . . . . . . Allies Hacked 1 | . . . . . . . . . . . . . . . . . . 1 . Hacks Repelled . | . . . . . . . . . . . . . . . . . . . . Allies | -11 -10 -10 -9 -9 -8 -8 -7 -6 -6 -5 -5 -5 -5 -4 -4 -3 -3 -2 -2 -------- Run | Yrd Mat Min Mat Min Mat Gar Fac Fac Gar Fac Gar Fac Gar Fac DSF Res Gar Res Qua Total Allies 73 | . . . . . . 3 . 2 15 4 16 . 17 . 2 . 5 9 . Largest Group 13 | . . . . . . 3 3 2 12 12 13 8 11 10 10 5 3 7 1 Highest-Rated Group 533 | . . . . . . 54 54 44 386 386 396 335 533 492 479 208 175 462 183 Highest-Rated Ally 183 | . . . . . . 18 18 41 47 49 85 49 85 85 81 72 64 183 183 Total Orders 47 | . . . . . . . . . 7 2 14 . 12 . 2 . 1 9 . STAY 24 | . . . . . . . . . 3 1 6 . 7 . 1 . 1 5 . FOLLOW 22 | . . . . . . . . . 4 1 7 . 5 . 1 . . 4 . GUARD 1 | . . . . . . . . . . . 1 . . . . . . . . Ally Attacks 497 | . . . . . . 6 9 10 55 39 135 3 89 . 34 26 7 77 7 Total Damage 13984 | . . . . . . 193 163 334 970 891 3179 88 2192 . 904 565 309 3743 453 Kills 83 | . . . . . . 3 2 2 6 12 20 1 12 . 4 3 . 16 2 Allies Corrupted 6 | . . . . . . . . . . . 3 . 2 . . . . 1 . Allies Melted 1 | . . . . . . . . . . . 1 . . . . . . . . Intel | -11 -10 -10 -9 -9 -8 -8 -7 -6 -6 -5 -5 -5 -5 -4 -4 -3 -3 -2 -2 ------- Run | Yrd Mat Min Mat Min Mat Gar Fac Fac Gar Fac Gar Fac Gar Fac DSF Res Gar Res Qua Active Infowar (turns) . | . . . . . . . . . . . . . . . . . . . . Robot Analysis Total . | . . . . . . . . . . . . . . . . . . . . Derelict Logs Recovered 1 | . . . . 1 . . . . . . . . . . . . . . . Drone Launches . | . . . . . . . . . . . . . . . . . . . . Drone Recoveries . | . . . . . . . . . . . . . . . . . . . . Exploration | -11 -10 -10 -9 -9 -8 -8 -7 -6 -6 -5 -5 -5 -5 -4 -4 -3 -3 -2 -2 ------------- Run | Yrd Mat Min Mat Min Mat Gar Fac Fac Gar Fac Gar Fac Gar Fac DSF Res Gar Res Qua Turns Passed 20994 | 118 1431 437 1075 530 104 6189 346 575 2223 275 1561 93 1845 133 200 478 1758 1221 402 Spaces Moved 9664 | 69 709 324 481 299 49 2685 198 289 962 135 851 49 914 89 94 195 753 366 153 Core 59 | 7 . . . . . . . . . . . . . . . . . . 52 Treads 4095 | 62 291 . 2 . . 34 . . 655 135 851 49 914 89 94 195 407 216 101 Legs . | . . . . . . . . . . . . . . . . . . . . Wheels 5510 | . 418 324 479 299 49 2651 198 289 307 . . . . . . . 346 150 . Hover . | . . . . . . . . . . . . . . . . . . . . Flight . | . . . . . . . . . . . . . . . . . . . . Fastest Speed 50 | 50 110 110 110 150 210 195 150 145 145 150 150 150 145 145 145 153 153 156 50 Average Speed 178 | 148 156 110 145 167 210 211 150 154 205 150 150 150 150 145 150 153 188 230 121 Slowest Speed 320 | 160 320 110 320 210 210 320 150 210 245 150 150 150 155 145 153 153 230 245 158 Overloaded Moves . | . . . . . . . . . . . . . . . . . . . . Propulsion Burnouts . | . . . . . . . . . . . . . . . . . . . . Robots Hopped . | . . . . . . . . . . . . . . . . . . . . Potential Cave-ins . | . . . . . . . . . . . . . . . . . . . . Cave-ins Triggered . | . . . . . . . . . . . . . . . . . . . . Exploration Rate (%) 40 | 4 95 63 64 53 4 93 4 9 79 3 60 2 65 3 91 6 78 19 22 Regions Visited 19 Branch Regions 3 Pre-discovered Areas 1 | . . 1 . . . . . . . . . . . . . . . . . Known Exits Taken 7 | . . . 1 . 1 . . 1 . 1 . 1 . 1 . 1 . . . Unknown Exits Taken 6 | 1 1 1 . 1 . . 1 . . . . . . . . . . 1 . Scrap Searched 2 | . . 1 . 1 . . . . . . . . . . . . . . . Spaces Dug 25 | . . . . . . 22 . . . . . . . . . 2 1 . . Terrain Destroyed 230 | . 6 . . 22 . 93 . . 17 . 3 . 2 . . 3 54 . 30 Melee 25 | . . . . . . 22 . . . . . . . . . 2 1 . . Projectile 7 | . . . . . . . . . 1 . 3 . 2 . . . 1 . . AOE 197 | . 6 . . 22 . 71 . . 16 . . . . . . . 52 . 30 Terrain Rammed . | . . . . . . . . . . . . . . . . . . . . Walls Destroyed . | . . . . . . . . . . . . . . . . . . . . Machines Disabled . | . . . . . . . . . . . . . . . . . . . . Actions | -11 -10 -10 -9 -9 -8 -8 -7 -6 -6 -5 -5 -5 -5 -4 -4 -3 -3 -2 -2 --------- Run | Yrd Mat Min Mat Min Mat Gar Fac Fac Gar Fac Gar Fac Gar Fac DSF Res Gar Res Qua Total 12231 | 84 895 368 775 319 50 2946 222 363 1141 202 1053 69 1276 92 130 315 949 673 309 Wait 1175 | . 82 21 217 5 . 8 4 21 52 55 91 15 216 3 17 68 52 210 38 Move 9640 | 68 708 323 480 298 48 2683 197 288 960 134 849 48 912 88 93 194 751 365 153 Hop . | . . . . . . . . . . . . . . . . . . . . Pick Up 161 | 10 17 2 13 4 . 27 3 9 17 3 13 1 12 . 2 6 13 6 3 Fast Attach 46 | . 7 . 1 . 1 1 1 1 4 . 3 . 5 1 1 2 8 8 2 Attach 92 | 6 3 . 3 . 1 17 2 5 9 2 3 . 6 . . 5 14 2 14 Detach 4 | . . . . . . . . . . . . . . . . 1 . 1 2 Swap 132 | . 5 2 9 3 . 15 1 6 17 1 22 3 12 . 4 5 10 14 3 Drop 108 | . 5 2 14 3 . 7 2 4 13 . 10 2 15 . . 5 2 11 13 Fire 589 | . 67 18 38 6 . 86 11 28 39 7 42 . 72 . 9 26 65 49 26 Melee 114 | . . . . . . 55 1 . 10 . 16 . 6 . 3 3 7 . 13 Ram 2 | . . . . . . . . . . . . . . . . . . . 2 Kick . | . . . . . . . . . . . . . . . . . . . . Crush 3 | . 1 . . . . . . . . . . . . . . . . 2 . Escape Stasis 106 | . . . . . . 32 . . 10 . . . . . . . 24 . 40 Rewire 59 | . . . . . . 15 . 1 10 . 4 . 20 . 1 . 3 5 . Trap . | . . . . . . . . . . . . . . . . . . . . Miscellaneous . | . . . . . . . . . . . . . . . . . . . . Route ------- -11/Scrapyard -10/Materials (discovered 5 exits: *Mat x3 / [*Min] / [*Sub]) -10/Mines -9/Materials (discovered 5 exits: *Mat x2 / *Min x2 / *Sto) -9/Mines -8/Materials (discovered 2 exits: Fac / Gar) -8/Garrison (discovered 4 exits: *Fac x3 / [*Mat]) -7/Factory -6/Factory -6/Garrison (discovered 3 exits: *Fac x3) -5/Factory -5/Garrison (discovered 3 exits: *Fac x3) -5/Factory -5/Garrison (discovered 3 exits: *Fac x3) -4/Factory -4/DSF -3/Research -3/Garrison (discovered 3 exits: *Res x3) -2/Research -2/Quarantine History --------- Turn | Location | Event 5 | -11/Scrapyard | Discovered new exit (range 16) 119 | -11/Scrapyard | Entered Materials 279 | -10/Materials | Discovered new exit (range 9) 308 | -10/Materials | Build established: Mutant 454 | -10/Materials | Repaired Assault Rifle 819 | -10/Materials | Derelicts attacked the area 878 | -10/Materials | Core integrity fell below 50% 921 | -10/Materials | Discovered new exit (range 13) 1074 | -10/Materials | Discovered new exit (range 5) 1200 | -10/Materials | Discovered new exit (range 11) 1390 | -10/Materials | Discovered new exit (range 16) 1550 | -10/Materials | Entered Mines 1553 | -10/Mines | Assembled infested the area 1557 | -10/Mines | Received a Rocket Launcher from a helpful Derelict 1871 | -10/Mines | Learned location of Storage (-9) 1910 | -10/Mines | Discovered new exit (range 4) 1987 | -10/Mines | Entered Materials 1987 | -9/Materials | Evolved 2 slots: Utility x1, Weapon x1 2343 | -9/Materials | Build established: Gunner 2359 | -9/Materials | Discovered new exit (range 10) 2642 | -9/Materials | Discovered new exit (range 15) 2910 | -9/Materials | Discovered new exit (range 13) 2945 | -9/Materials | Discovered new exit (range 11) 3014 | -9/Materials | Discovered new exit (range 16) 3027 | -9/Materials | Identified exit to Mines 3027 | -9/Materials | Identified exit to Storage 3062 | -9/Materials | Entered Mines 3088 | -9/Mines | Found a damaged Exp. Sensor Array with a note attached 3159 | -9/Mines | Discovered new exit (range 3) 3194 | -9/Mines | Learned location of 1 exit from Materials 3391 | -9/Mines | Met a Derelict shopkeep closing up shop 3592 | -9/Mines | Entered Materials 3592 | -8/Materials | Evolved 2 slots: Propulsion x1, Utility x1 3593 | -8/Materials | Identified exit to Factory 3694 | -8/Materials | Identified exit to Garrison 3696 | -8/Materials | Entered Garrison 3772 | -8/Garrison | Triggered checkpoint 3864 | -8/Garrison | Lost 3 parts (1p2w) 3866 | -8/Garrison | Triggered checkpoint 3874 | -8/Garrison | Destroyed 11 combat bots 3938 | -8/Garrison | Discovered exit to Factory (range 12) 3974 | -8/Garrison | Triggered checkpoint 4038 | -8/Garrison | Garrison Relay disabled 4318 | -8/Garrison | Discovered exit to Factory (range 10) 4442 | -8/Garrison | Triggered checkpoint 4478 | -8/Garrison | Garrison Relay disabled 4487 | -8/Garrison | Lost 3 parts (1n1u1w) 4564 | -8/Garrison | Triggered checkpoint 4614 | -8/Garrison | Lost 4 parts (2n2w) 4630 | -8/Garrison | Discovered new exit (range 5) 4748 | -8/Garrison | Triggered checkpoint 4984 | -8/Garrison | Triggered checkpoint 5001 | -8/Garrison | Discovered exit to Factory (range 14) 5054 | -8/Garrison | Build established: Scavenger-Tank 5368 | -8/Garrison | Triggered checkpoint 5417 | -8/Garrison | Garrison Relay disabled 5525 | -8/Garrison | Build established: Mutant 5586 | -8/Garrison | Triggered checkpoint 5635 | -8/Garrison | Lost 3 parts (2n1u) 5648 | -8/Garrison | Triggered checkpoint 5666 | -8/Garrison | Garrison Relay disabled 5900 | -8/Garrison | Build established: Scavenger-Tank 6116 | -8/Garrison | Triggered checkpoint 6498 | -8/Garrison | Build established: Scavenger-Mutant 7060 | -8/Garrison | Triggered checkpoint 7072 | -8/Garrison | Garrison Relay disabled 9202 | -8/Garrison | Build established: Scavenger-Tank 9395 | -8/Garrison | Installed Relay Interface Framework 9437 | -8/Garrison | Expanded RIF knowledge: Signal Jamming 9685 | -8/Garrison | Build established: Bothacker-Tank 9885 | -8/Garrison | Entered Factory 9885 | -7/Factory | Accompanied by 3 allies 9885 | -7/Factory | Evolved 2 slots: Propulsion x1, Utility x1 10222 | -7/Factory | Discovered new exit (range 4) 10231 | -7/Factory | Entered another Factory area 10231 | -6/Factory | Accompanied by 2 allies 10231 | -6/Factory | Evolved 2 slots: Utility x2 10273 | -6/Factory | Spotted B-75 Beast 10294 | -6/Factory | Allies destroyed B-75 Beast 10429 | -6/Factory | Build established: Bothacker-Gunner 10646 | -6/Factory | Garrison activated, responded to threat 10804 | -6/Factory | Identified exit to Garrison 10806 | -6/Factory | Entered Garrison 10864 | -6/Garrison | Triggered checkpoint 10908 | -6/Garrison | Lost 5 parts (1p2n2w) 10919 | -6/Garrison | Garrison Relay disabled 10921 | -6/Garrison | Garrison Relay disabled 11162 | -6/Garrison | Triggered checkpoint 11792 | -6/Garrison | Triggered checkpoint 11836 | -6/Garrison | Garrison Relay disabled 11909 | -6/Garrison | Discovered new exit (range 12) 12038 | -6/Garrison | Triggered checkpoint 12135 | -6/Garrison | Found Fusion Bomb Launcher 12164 | -6/Garrison | Found Gamma Bomb Array 12237 | -6/Garrison | Discovered new exit (range 8) 12266 | -6/Garrison | Triggered checkpoint 12300 | -6/Garrison | Garrison Relay disabled 12398 | -6/Garrison | Triggered checkpoint 12419 | -6/Garrison | Build established: Bothacker-Tank 12434 | -6/Garrison | Triggered checkpoint 12514 | -6/Garrison | Discovered new exit (range 8) 12536 | -6/Garrison | Triggered checkpoint 12618 | -6/Garrison | Triggered checkpoint 12726 | -6/Garrison | Expanded RIF knowledge: Patrol Navigation 12895 | -6/Garrison | Rescued a captive Derelict 12895 | -6/Garrison | Rescued a captive Derelict 13012 | -6/Garrison | Build established: Bothacker-Mutant 13029 | -6/Garrison | Entered Factory 13029 | -5/Factory | Accompanied by 12 allies 13029 | -5/Factory | Evolved 2 slots: Utility x2 13072 | -5/Factory | Lost 3 allies 13141 | -5/Factory | Lost 3 allies 13292 | -5/Factory | Identified exit to Garrison 13304 | -5/Factory | Entered Garrison 13304 | -5/Garrison | Accompanied by 9 allies 13310 | -5/Garrison | Triggered checkpoint 13333 | -5/Garrison | Build established: Bothacker-Tank 13336 | -5/Garrison | Triggered checkpoint 13368 | -5/Garrison | Triggered checkpoint 13700 | -5/Garrison | Lost 3 allies 13785 | -5/Garrison | Spotted B-75 Beast 13790 | -5/Garrison | Triggered checkpoint 13792 | -5/Garrison | Hijacked Beast 6a control node with streamctrl_high 13831 | -5/Garrison | Lost 3 allies 13862 | -5/Garrison | Triggered checkpoint 13908 | -5/Garrison | Allies destroyed Beast 6a 14012 | -5/Garrison | Expanded RIF knowledge: Coupler Efficiency 14040 | -5/Garrison | Discovered new exit (range 8) 14063 | -5/Garrison | Discovered new exit (range 6) 14063 | -5/Garrison | Discovered new exit (range 90) 14063 | -5/Garrison | Discovered new exit (range 49) 14074 | -5/Garrison | Triggered checkpoint 14087 | -5/Garrison | Garrison Relay disabled 14202 | -5/Garrison | Triggered checkpoint 14305 | -5/Garrison | Garrison Relay disabled 14578 | -5/Garrison | Lost 3 allies 14758 | -5/Garrison | Triggered checkpoint 14764 | -5/Garrison | Expanded RIF knowledge: Threat Obfuscation 14790 | -5/Garrison | Garrison Relay disabled 14841 | -5/Garrison | Build established: Botlord-Tank 14865 | -5/Garrison | Entered Factory 14865 | -5/Factory | Accompanied by 8 allies 14952 | -5/Factory | Identified exit to Garrison 14958 | -5/Factory | Entered Garrison 14958 | -5/Garrison | Accompanied by 8 allies 14998 | -5/Garrison | P-70 Sage assimilated allied Sentinel 6b 15001 | -5/Garrison | P-70 Sage assimilated allied Disruptor 6a 15002 | -5/Garrison | Triggered checkpoint 15047 | -5/Garrison | Lost 6 allies 15066 | -5/Garrison | Triggered checkpoint 15122 | -5/Garrison | Discovered new exit (range 40) 15122 | -5/Garrison | Discovered new exit (range 66) 15122 | -5/Garrison | Discovered new exit (range 53) 15140 | -5/Garrison | Garrison Relay disabled 15466 | -5/Garrison | Triggered checkpoint 15504 | -5/Garrison | Triggered checkpoint 15546 | -5/Garrison | Triggered checkpoint 15624 | -5/Garrison | Triggered checkpoint 15664 | -5/Garrison | Lost 3 allies 15664 | -5/Garrison | Expanded RIF knowledge: Alert ID Control 15698 | -5/Garrison | Garrison Relay disabled 15864 | -5/Garrison | Spotted B-75 Beast 15911 | -5/Garrison | Assimilated Beast 6b with formatsys_high 16015 | -5/Garrison | Rescued a captive Derelict 16015 | -5/Garrison | Rescued a captive Derelict 16311 | -5/Garrison | Build established: Botlord-Mutant 16342 | -5/Garrison | Triggered checkpoint 16390 | -5/Garrison | Triggered checkpoint 16417 | -5/Garrison | Garrison Relay disabled 16512 | -5/Garrison | Spotted B-75 Beast 16518 | -5/Garrison | Assimilated Beast 6c with formatsys_high 16539 | -5/Garrison | Found Relay Coupler [Proto] 16543 | -5/Garrison | Found Relay Coupler [Proto] 16803 | -5/Garrison | Entered Factory 16803 | -4/Factory | Accompanied by 10 allies 16803 | -4/Factory | Evolved 2 slots: Propulsion x1, Utility x1 16933 | -4/Factory | Identified exit to DSF 16936 | -4/Factory | Entered DSF 16936 | -4/DSF | Accompanied by 10 allies 16947 | -4/DSF | Additional patrols routed to DSF 17021 | -4/DSF | Lost 5 allies 17051 | -4/DSF | Sterilization system engaged 17071 | -4/DSF | Ambient heat levels rising (+10) 17086 | -4/DSF | Ambient heat levels rising (+10) 17101 | -4/DSF | Ambient heat levels rising (+10) 17106 | -4/DSF | Discovered new exit (range 14) 17116 | -4/DSF | Ambient heat levels rising (+10) 17131 | -4/DSF | Ambient heat levels rising (+10) 17136 | -4/DSF | Entered Research 17136 | -3/Research | Accompanied by 5 allies 17136 | -3/Research | Evolved 2 slots: Utility x2 17241 | -3/Research | Repaired Adv. Heavy Treads 17418 | -3/Research | Garrison activated, responded to threat 17459 | -3/Research | Lost 3 allies 17498 | -3/Research | Destroyed 8 combat bots 17584 | -3/Research | Build established: Botlord-Tank 17613 | -3/Research | Identified exit to Garrison 17614 | -3/Research | Entered Garrison 17757 | -3/Garrison | Destroyed 7 combat bots 17760 | -3/Garrison | Triggered checkpoint 17811 | -3/Garrison | Lost 8 parts (3n3u2w) 18047 | -3/Garrison | Discovered new exit (range 10) 18078 | -3/Garrison | Triggered checkpoint 18100 | -3/Garrison | Garrison Relay disabled 18263 | -3/Garrison | Learned Research security intel 18374 | -3/Garrison | Lost 3 parts (1n1u1w) 18389 | -3/Garrison | Build established: Botlord-Gunner 18456 | -3/Garrison | Expanded RIF knowledge: Watcher Feeds 18512 | -3/Garrison | Discovered new exit (range 8) 18526 | -3/Garrison | Triggered checkpoint 18599 | -3/Garrison | Garrison Relay disabled 18826 | -3/Garrison | Triggered checkpoint 18922 | -3/Garrison | Discovered new exit (range 15) 19053 | -3/Garrison | Expanded RIF knowledge: Threat Obfuscation 19258 | -3/Garrison | Triggered checkpoint 19288 | -3/Garrison | Garrison Relay disabled 19372 | -3/Garrison | Entered Research 19372 | -2/Research | Accompanied by 3 allies 19372 | -2/Research | Evolved 2 slots: Power x1, Utility x1 19790 | -2/Research | Found Hvy. Reactive Plating 19911 | -2/Research | Discovered new exit (range 13) 20077 | -2/Research | Build established: Botlord-Tank 20221 | -2/Research | P-80 Master assimilated allied Warden 9a 20332 | -2/Research | Garrison activated, responded to threat 20364 | -2/Research | P-80 Master assimilated allied Enforcer 9a 20593 | -2/Research | Entered Quarantine 20593 | -2/Quarantine | Accompanied by 1 ally 20726 | -2/Quarantine | Found Alien Artifact 20726 | -2/Quarantine | Identified Core Reset Matrix 20726 | -2/Quarantine | Used Core Reset Matrix 20730 | -2/Quarantine | Detected hypermatrix surge 20730 | -2/Quarantine | Sensed 16 artifacts in vicinity 20777 | -2/Quarantine | Found Sigix Broadsword 20811 | -2/Quarantine | Scanned by Researcher 20946 | -2/Quarantine | Core integrity fell below 50% 20970 | -2/Quarantine | Lost 12 parts (5n7w) 20981 | -2/Quarantine | Core integrity fell below 20% 20995 | -2/Quarantine | Self-destructed Last Messages --------------- 20954_ Slug penetrates Wall. 20959_ Slammed into U-05 Engineer. 20959_ ALERT: Construction progress impeded, dispatching reinforcements to local area. 20961_ Slammed into K-01 Serf. 20963_ Held in stasis. 20963_ C-65 Expert is analyzing... 20967_ Held in stasis. 20967_ C-65 Expert is analyzing... 20973_ Held in stasis. 20973_ C-65 Expert is analyzing... 20977_ Penetrated by Slug. 20977_ Held in stasis. 20977_ C-65 Expert is analyzing... 20980_ Penetrated by Slug. 20985_ Slug penetrates Wall. 20990_ Held in stasis. 20990_ C-65 Expert is analyzing... 20991_ Slug penetrates Wall. 20994_ Held in stasis. Map ----- +----------------------------------------------------+ | ?????????????????????????????????????????????????? | | ?????????????????????????????????????????????????? | | ?????????????????????????????????????????????????? | | ?????????????????????????????????????????????????? | | ?????????????????????????????????????????????????? | | ?????????????????????????????????????????????????? | | ?????????????????????????????????????????????????? | | ?????????????????????????????????????????????????? | | ?????????????????????????????????????????????????? | | ?????????????????????????????????????????????????? | | ?????????????????????????????????????????????????? | | ?????????????????????????????????????????????????? | | ?????????????????????????????????????????????????? | | ?????????????????????????????????????????????????? | | ?????????????????????????????????????????????????? | | ???????????????????############??????????????????? | | ???????????????????? #??????????????????? | | ???????????????????? #??????????????????? | | ##########???????????"""" #????????? #???????? | | # #??????????"""!" ######### ##????!!? | | # #??????????""""" w # #?????!? | | # """"" #??????????""""" cc #??????? | | # ""/"" #??????????"""!" # +??????? | | # "" #??????????""""" # #???!??? | | + ! #???????? """"" # ###### #?????!? | | # #???????? """!"@ # #???????? #????!!? | | # #???????# """" # #????????????????? | | # =%|% #???????# # #????????????????? | | #####+######################### #????????????????? | | # ##*!%/! ! / #????????????????? | | ####!!|# ] ##### #######????????????????? | | + !|/*# % #???# #??????????????????????? | | # !%= +%""" """ #???# #??????????????????????? | | # % **=#[""" """ #???# #??????????????????????? | | # [ [" """ """ #???# #??????????????????????? | | # % # #???# #??????????????????????? | | = # ! #???# #??????????????????????? | | ###########???# #??????????????????????? | | ##????????????# #??????????????????????? | | #????????????# ##+#??????????????????????? | | ###????????????# ??????????????????????????? | | # ##?????????????# ??????????????????????????? | | # #??????????????# ??????????????????????????? | | # #??????????????# ??????????????????????????? | | # #??????????????# ??????????????????????????? | | "" # #??????????????? ??????????????????????????? | | *"" ? +??????????????????????????????????????????? | | """ ? #?????????????????????????????!????????????? | | ? #??????????????????????????????????????????? | | ??##? #??????????????????????????????????????????? | +----------------------------------------------------+ Best States ------------- Heat Dissipation 92 Energy Generation 39 Energy Capacity 450 Matter Stores 300 Matter Capacity 300 Sight Range 16 Terrain Scan Density 10 Corruption Block 15 Armor Coverage 1200 Resistance: KI 40 Utility Shielding 90 Evasion (%) 50 Targeting Accuracy 8 Target Analysis 8 Core Analysis 6 Recoil Reduction 5 Relay Coupler Types 6 Relay Coupler Value 209 Authchip Count 4 Item Schematics ----------------- None Robot Schematics ------------------ None Fabricated ------------ Nothing Repaired ---------- Assault Rifle | 13% | -10/Materials Adv. Heavy Treads | 14% | -3/Research Studied --------- None Alien Tech Used ----------------- Core Reset Matrix Sigix Broadsword Achievements -------------- Hackerman Pwned Challenges ------------ None Game ------ Seed MetaZeronetMultitool Manual? 0 Play Time 02:39:55 Cumulative 287.8 hours Start 2026.09.18 @ 17:26:25 End 2026.09.18 @ 20:21:24 Sessions 3 Manual Loads 0 Difficulty Rogue Special Mode None Game No. 309 Rogue 309 Adventurer 0 Explorer 0 Win Type - Total 3 Types 3/0/0/0/0/0/0/0/0/0 Lore% 33 Gallery% 57 Achievement% 41 Wizard Run 0 Options --------- Layout 1 ASCII 0 Keyboard 0 Movement Numpad Keybinds 0 Fullscreen 2 Font 24/Smallcaps Map View 50x35 Zoom Use 0% Tactical HUD 1 Map Filters NONE Filters NONE Steam 1 RUN: 992fd879-b135-4ee9-a9af-14d011936963